Cogmind - Beta 16.1 @@@ ROGUE MODE // 2026.03.01 @ 16:48:38 Player: Anonymous Bosch Result: Destroyed by D-53 Grenadier with Mini Grenade Launcher Performance ------------- Evolutions (0) 0 Regions Visited (2) 400 Robots Destroyed (44) 220 Value Destroyed (767) 767 Prototype IDs (0) 0 Alien Tech Used (0) 0 Bonus (0) 0 TOTAL SCORE: 1387 Bonus ------- None Cogmind --------- Core Integrity 0/250 Matter 280/300 Energy 53/100 System Corruption 0% Temperature Cool (18) Movement Rolling (105) Ox1 Location -10/Mines Parts ------- > --- POWER (1) -------- (None) > --- PROPULSION (2) --- Wheel Compact Wheel > --- UTILITY (2) ------ High-capacity Storage Unit Medium Armor Plating > --- WEAPON (2) ------- Light EM Pulse Cannon Mini Grenade Launcher > --- INVENTORY (20) --- Ion Engine Wheel Wheel Wheel Wheel Disposable Heat Sink Large Battery (200) Large Matter Pod (150) Seismic Detector Seismic Detector Light Armor Plating Medium Armor Plating Bomb Drone Bay Light EM Pulse Cannon Light EM Pulse Cannon Assault Rifle Mini Grenade Launcher Mini Grenade Launcher Mining Laser Peak State ------------ > --- POWER ------------ Light Ion Engine > --- PROPULSION ------- Wheel Compact Wheel > --- UTILITY ---------- High-capacity Storage Unit Seismic Detector > --- WEAPON ----------- Light EM Pulse Cannon Assault Rifle > --- INVENTORY -------- Ion Engine Wheel Wheel Wheel Wheel Disposable Heat Sink Large Battery Medium Matter Pod Seismic Detector Light Armor Plating Medium Armor Plating Medium Armor Plating Bomb Drone Bay Light EM Pulse Cannon Light EM Pulse Cannon Mini Grenade Launcher Mini Grenade Launcher Mini Grenade Launcher Mining Laser [Rating: 12] Favorites ----------- Power Ion Engine Engine Ion Engine Propulsion Light Treads Treads Light Treads Wheel Wheel Utility High-capacity Storage Unit Device Seismic Detector Storage High-capacity Storage Unit Protection Medium Armor Plating Weapon Medium Laser Energy Gun Medium Laser Energy Cannon Light EM Pulse Cannon Ballistic Gun Assault Rifle Ballistic Cannon Light Cannon Launcher Mini Grenade Launcher Special Weapon Mining Laser Build | -11 -10 -10 ------- Run | Yrd Mat Min Slots Evolved . | . . . Power . | . . . Propulsion . | . . . Utility . | . . . Weapon . | . . . Parts Attached 29 | 8 14 7 Power 3 | 1 1 1 Engine 3 | 1 1 1 Core . | . . . Reactor . | . . . Propulsion 8 | 3 3 2 Treads 3 | 2 1 . Leg . | . . . Wheel 5 | 1 2 2 Hover . | . . . Flight . | . . . Utility 8 | 2 5 1 Device 2 | 1 1 . Storage 3 | 1 2 . Processor . | . . . Hackware . | . . . Protection 3 | . 2 1 Artifact . | . . . Weapon 10 | 2 5 3 Energy Gun 3 | 2 . 1 Energy Cannon 3 | . 2 1 Ballistic Gun 1 | . 1 . Ballistic Cannon 1 | . 1 . Launcher 1 | . . 1 Special Weapon 1 | . 1 . Impact Weapon . | . . . Slashing Weapon . | . . . Piercing Weapon . | . . . Special Melee Weapon . | . . . Unidentified Prototypes . | . . . Parts Lost 10 | . 4 6 Power 2 | . . 2 Propulsion 3 | . 2 1 Utility 2 | . 1 1 Weapon 3 | . 1 2 Highest Loss Streak 3 | . 3 3 To Critical Strikes . | . . . Average Backups 16 | 6 17 19 Power 1 | 1 1 1 Propulsion 2 | 2 2 4 Utility 6 | 1 7 7 Weapon 5 | 1 6 6 Tool/Special . | . . . Unused Backups 20 | 1 3 16 Power 2 | . 1 1 Propulsion 7 | 1 1 5 Utility 8 | . 1 7 Weapon 3 | . . 3 Tool/Special . | . . . Average Slot Usage (%) 99 | . 99 98 Engine 13 | . 14 13 Treads 15 | . 19 . Wheel 11 | . 8 27 Device 8 | . 8 7 Storage 14 | . 14 14 Protection 5 | . 5 6 Energy Gun 12 | . 14 4 Energy Cannon 5 | . 4 8 Ballistic Gun 3 | . 1 14 Ballistic Cannon 5 | . 6 . Special Weapon 1 | . 1 . Peak Build Rating 12 | 8 11 12 Average Rating 9 | 6 9 10 On Entrance 6 | . 8 11 Avg Prop Armor Cover (%) 9 | 10 9 . Naked Turns . | . . . Heaviest Build 57 | 15 57 56 Greatest Support 40 | 40 40 26 Greatest Overweight (x) 5 | . 5 2 Average Overweight (x) 2 | . 2 1 Largest Inventory Capacity 20 | 8 20 20 Average Capacity 17 | 7 18 20 Most Carried 20 | 8 20 20 Average Carried 16 | 6 17 19 Final Capacity 20 | 8 20 20 Final Carried 20 | 8 20 20 Class Distribution -------------------- 95% | Mutant 4% | Scavenger-Mutant Dominant Class ---------------- Mutant | -10/Materials Mutant | -10/Mines Resources | -11 -10 -10 ----------- Run | Yrd Mat Min Matter Collected 1115 | 280 508 327 Remotely . | . . . Salvage Created 1438 | 223 673 542 Parts 82 | 20 41 21 Haulers Intercepted 2 | . 2 . Recyclers Shooed 6 | . 4 2 Parts Field Recycled . | . . . Retrieved Matter . | . . . Parts Self-Destructed . | . . . Prevented . | . . . Parts Restored . | . . . Kills | -11 -10 -10 ------- Run | Yrd Mat Min Combat Hostiles Destroyed 23 | . 18 5 Guns 8 | . 6 2 Cannons 12 | . 11 1 AOE 3 | . 1 2 Classes Destroyed 9 | 2 6 1 Worker 7 | . 5 2 Builder 1 | . 1 . Tunneler 6 | 6 . . Hauler 2 | . 2 . Recycler 5 | 1 . 4 Watcher 1 | . 1 . Swarmer 6 | . 6 . Grunt 16 | . 12 4 Assembled 1 | . . 1 Best Kill Streak 4 | 3 4 3 Combat Bots Only 3 | . 3 2 Max Kills in Single Turn 2 | 2 2 1 Gunslinging . | . . . Exploded 1 | . 1 1 Melee . | . . . Uniques/NPCs Destroyed . | . . . Combat | -11 -10 -10 -------- Run | Yrd Mat Min Hostile Shots Fired 176 | . 126 50 Missed 39 | . 27 12 Hits 137 | . 99 38 Projectile 137 | . 99 38 AOE 2 | . . 2 Critical Strikes 2 | . . 2 Damage Taken 1643 | . 1060 583 Core 257 | . 138 119 Absorbed by Shields . | . . . Core Remaining (%) 100 | 100 . . Volleys Fired 148 | 15 101 32 Largest 2 | 2 2 2 Hottest 106 | 90 106 86 Shots Fired 275 | 30 181 64 Gun 174 | 30 89 55 Cannon 82 | . 74 8 Launcher 1 | . . 1 Special 18 | . 18 . Kinetic 96 | . 65 31 Thermal 121 | 15 100 6 Explosive 1 | . . 1 Electromagnetic 57 | 15 16 26 Robot Hit Streak 9 | 6 6 9 Robot Miss Streak 6 | 2 6 2 Penetration Max . | . . . Secondary Targets . | . . . Shots Hit Robots 156 | 20 94 42 Core Hits 63 | 8 38 17 Critical Kills . | . . . Critical Parts Destroyed . | . . . Critical Strikes 12 | 1 11 . Burn 12 | 1 11 . Melee Attacks . | . . . Impact . | . . . Slashing . | . . . Piercing . | . . . Sneak Attacks . | . . . Combat Hostiles . | . . . Follow-up Attacks . | . . . Damage Inflicted 2773 | 314 1620 839 Guns 1355 | 270 636 449 Cannons 934 | . 796 138 Explosions 474 | 44 178 252 Melee . | . . . Ramming 10 | . 10 . Kinetic 842 | . 590 252 Thermal 1118 | 156 779 183 Explosive 119 | . . 119 Electromagnetic 684 | 158 241 285 Impact . | . . . Slashing . | . . . Piercing . | . . . Highest Corruption . | . . . Average Corruption . | . . . Corruption Purged . | . . . Corruption Blocked . | . . . Overload Shots . | . . . Overflow Damage 14 | . 1 13 Projectiles 1 | . 1 . Explosions 13 | . . 13 Melee . | . . . Knockbacks 4 | . 4 . Impact . | . . . Kinetic 4 | . 4 . Secondary . | . . . Self-Inflicted Damage 69 | . 30 39 Shots 3 | . 2 1 Rammed 2 | . 2 . Targets Rammed 2 | . 2 . Kicked . | . . . Crushed . | . . . Highest Temperature 363 | 150 363 235 Average Temperature 82 | 49 82 105 Received Heat Transfer 663 | . 411 252 Effects 1 | . 1 . Short Circuit 1 | . 1 . Siege Activations . | . . . Martial Activations . | . . . Shielding Activations . | . . . Robots Disrupted . | . . . Combat Hostiles . | . . . Robots Corrupted . | . . . Combat Hostiles . | . . . Parts Fried 1 | 1 . . Impact Corruptions . | . . . Robots Melted . | . . . Combat Hostiles . | . . . Parts Melted 4 | . 4 . Heat Transferred 3695 | 507 2890 298 Parts Sabotaged . | . . . Parts Stolen . | . . . Parts Stripped . | . . . Power Chain Reactions 7 | 2 3 2 Alert | -11 -10 -10 ------- Run | Yrd Mat Min Maximum Alert Level 1 | . 1 . Low Security (%) 74 | 100 65 100 Level 1 25 | . 34 . Level 2 . | . . . Level 3 . | . . . Level 4 . | . . . Level 5 . | . . . High Security . | . . . Max Security . | . . . Peak Influence 315 | 10 315 134 Initial 114 | . . 114 Average 96 | 1 116 63 Influence Increases 861 | 35 653 173 Destroy 0b10 Robot/C 440 | . 360 80 Destroy 0b10 Robot/NC 110 | 35 45 30 Destroy Leader 96 | . 76 20 Successful Hack 12 | . 12 . Disable Machine 30 | . 30 . Destroy Structure 53 | . 25 28 Partial Spotted 15 | . 15 . Lose Combat Pursuer 105 | . 90 15 Influence Decreases 840 | 35 359 446 Entered New Map 180 | . . 180 Time Decay 560 | 35 319 206 Lost Part 100 | . 40 60 Squads Dispatched 5 | . 5 . Investigation 4 | . 4 . Extermination . | . . . Reinforcement 1 | . 1 . Assault . | . . . Garrison . | . . . Intercept . | . . . Searches Triggered . | . . . Construction Impeded . | . . . Haulers Reinforced . | . . . Active Scanning Responses . | . . . Cargo Convoy Interrupts . | . . . Stealth | -11 -10 -10 --------- Run | Yrd Mat Min Distress Signals . | . . . Communications Jammed . | . . . Distress Signals . | . . . Times Spotted 45 | . 29 16 Peak Tracking Total 9 | . 3 9 Tactical Retreats 4 | . 3 1 Traps | -11 -10 -10 ------- Run | Yrd Mat Min Traps Triggered 3 | . 3 . Indirectly . | . . . Trap Hack Attempts . | . . . Triggered . | . . . Disarmed . | . . . Reprogrammed . | . . . Reused . | . . . Traps Extracted . | . . . Installed . | . . . Triggered . | . . . Machines | -11 -10 -10 ---------- Run | Yrd Mat Min Machines Disabled 2 | . 2 . Max in Single Turn 1 | . 1 . Machines Repaired . | . . . Machines Dismantled . | . . . Machines Sabotaged . | . . . Overloaded Fab Kills . | . . . Hacking | -11 -10 -10 --------- Run | Yrd Mat Min Machines Accessed 12 | . 11 1 Terminals 8 | . 8 . Fabricators . | . . . Repair Stations 1 | . 1 . Recycling Units 2 | . 2 . Scanalyzers . | . . . Garrison Access . | . . . Total Hacks 25 | . 24 1 Successful 10 | . 9 1 Failed 15 | . 15 . Catastrophic 6 | . 6 . Database Lockouts . | . . . Manual 14 | . 14 . Terminals 20 | . 20 . Fabricators . | . . . Repair Stations 1 | . 1 . Recycling Units 3 | . 3 . Scanalyzers . | . . . Garrison Access . | . . . Terminal Hacks 4 | . 3 1 Record 1 | . 1 . Open Door 1 | . . 1 Locate Traps 1 | . 1 . Hauler Manifests 1 | . 1 . Fabricator Hacks . | . . . Repair Station Hacks . | . . . Recycling Unit Hacks . | . . . Scanalyzer . | . . . Garrison Access Hacks . | . . . Unauthorized Hacks 6 | . 6 . Terminals 6 | . 6 . Skim 6 | . 6 . Fabricators . | . . . Repair Stations . | . . . Recycling Units . | . . . Scanalyzers . | . . . Garrison Access . | . . . Data Cores Recovered . | . . . Used . | . . . Hacking Detections 11 | . 11 . Full Trace Events 1 | . 1 . Feedback Events . | . . . Feedback Blocked . | . . . Robot Schematics Acquired . | . . . Robots Built . | . . . Authchips . | . . . Time . | . . . Total Robot Build Rating . | . . . Part Schematics Acquired . | . . . Parts Built . | . . . Authchips . | . . . Time . | . . . Total Part Build Rating . | . . . Part Studies Acquired . | . . . Parts Repaired . | . . . Time . | . . . Parts Recycled . | . . . Recycled Matter . | . . . Retrieved Matter . | . . . Retrieved Components . | . . . Parts Scanalyzed . | . . . Part Schematics Acquired . | . . . Parts Damaged . | . . . Bothacking | -11 -10 -10 ------------ Run | Yrd Mat Min Used RIF Installer . | . . . Robots Hacked . | . . . Non-combat . | . . . Combat . | . . . Robot Hacks Applied . | . . . Relay Couplers Released . | . . . Fabnet Peak Effective % . | . . . Robots Rewired . | . . . Allies Hacked . | . . . Hacks Repelled . | . . . Allies | -11 -10 -10 -------- Run | Yrd Mat Min Total Allies . | . . . Largest Group . | . . . Highest-Rated Group . | . . . Highest-Rated Ally . | . . . Total Orders . | . . . Ally Attacks . | . . . Total Damage . | . . . Kills . | . . . Allies Corrupted . | . . . Allies Melted . | . . . Intel | -11 -10 -10 ------- Run | Yrd Mat Min Active Infowar (turns) 1504 | 145 1150 209 Seismic 1504 | 145 1150 209 Robot Analysis Total . | . . . Derelict Logs Recovered 1 | . . 1 Drone Launches . | . . . Drone Recoveries . | . . . Exploration | -11 -10 -10 ------------- Run | Yrd Mat Min Turns Passed 2564 | 236 1890 438 Spaces Moved 1289 | 113 914 262 Core 10 | 10 . . Treads 483 | 101 382 . Legs . | . . . Wheels 796 | 2 532 262 Hover . | . . . Flight . | . . . Fastest Speed 50 | 50 110 105 Average Speed 149 | 148 160 112 Slowest Speed 240 | 160 240 130 Overloaded Moves . | . . . Propulsion Burnouts . | . . . Robots Hopped . | . . . Potential Cave-ins . | . . . Cave-ins Triggered . | . . . Exploration Rate (%) 51 | 6 99 50 Regions Visited 2 Branch Regions 1 Pre-discovered Areas . | . . . Known Exits Taken 1 | . 1 . Unknown Exits Taken 1 | 1 . . Scrap Searched 1 | . . 1 Spaces Dug 25 | . 11 14 Terrain Destroyed 65 | 8 26 31 Melee . | . . . Projectile 17 | . 17 . AOE 48 | 8 9 31 Terrain Rammed . | . . . Walls Destroyed . | . . . Machines Disabled . | . . . Actions | -11 -10 -10 --------- Run | Yrd Mat Min Total 1606 | 150 1114 342 Wait 71 | . 41 30 Move 1287 | 112 913 262 Hop . | . . . Pick Up 42 | 14 24 4 Fast Attach 5 | 2 1 2 Attach 12 | 5 4 3 Detach . | . . . Swap 24 | 1 17 6 Drop 15 | 1 11 3 Fire 148 | 15 101 32 Melee . | . . . Ram . | . . . Kick . | . . . Crush 2 | . 2 . Escape Stasis . | . . . Rewire . | . . . Trap . | . . . Miscellaneous . | . . . Route ------- -11/Scrapyard -10/Materials (discovered 6 exits: *Mat x3 / *Min x2 / *Sub) -10/Mines (discovered 2 exits: *Mat x2) History --------- Turn | Location | Event 17 | -11/Scrapyard | Discovered new exit (range 14) 237 | -11/Scrapyard | Entered Materials 327 | -10/Materials | Build established: Mutant 458 | -10/Materials | Discovered new exit (range 12) 666 | -10/Materials | Discovered new exit (range 14) 846 | -10/Materials | Learned location of 2 exits from Subcaves 897 | -10/Materials | Identified exit to Subcaves 937 | -10/Materials | Identified exit to Materials 937 | -10/Materials | Identified exit to Mines 965 | -10/Materials | Learned location of 2 exits from Mines 1138 | -10/Materials | Lost 3 parts (2n1u) 1371 | -10/Materials | Discovered exit to Materials (range 16) 1434 | -10/Materials | Core integrity fell below 50% 2127 | -10/Materials | Entered Mines 2288 | -10/Mines | Lost 3 parts (1p1n1w) 2344 | -10/Mines | Found the Drone Emporium 2353 | -10/Mines | Found Prototype Device 2519 | -10/Mines | Assembled infested the area 2522 | -10/Mines | Learned location of 1 exit from Materials 2524 | -10/Mines | Assisted by a Guerilla fighting off Assembled 2565 | -10/Mines | Core integrity fell below 20% 2565 | -10/Mines | Destroyed by D-53 Grenadier with Mini Grenade Launcher Last Messages --------------- 02519_ ALERT: Infestation in the mines, dispatching Demolisher response squad. 02522_ Acquired derelict log, extracted data. Data stored: Materials exits (x1). 02530_ Searching scrap... 02530_ Found Wheel. 02530_ Found Lrg. Matter Pod. 02530_ Found 66 Matter. 02532_ Dropped Med. Matter Pod. 02532_ Acquired Lrg. Matter Pod. 02534_ Extracted 100 matter. 02536_ Acquired 50 matter. 02558_ as-12518 IFF system glitched. 02560_ Lgt. Ion Engine destroyed. 02562_ as-48618 destroyed. 02562_ Destroyed Asb. Hover Unit. 02563_ C-45 Heavy ARC bursts open, deploying its payload. 02563_ D-53 Grenadier unfolds itself. 02564_ as-96846 destroyed. Map ----- +----------------------------------------------------+ | #####?????## ##???????????????# ??????????????? | | #??????????# ##???????????????# ??????????????? | | #??????????# #?????????????????##??????????????? | | #???????#### #####?????????????????????????????? | | #???????# #?????????????????????????????? | | #???????# ## #?????????????????????????????? | | #???????# ###### #?????????????????????????????? | | #???????# #????# #?????????????????????????????? | | #???????# #????# #?????????????????????????????? | | #???????# #????# #?????????????????????????????? | | #???????# #????# #?????????????????????????????? | | #???????# #????# #?????????????????????????????? | | #??????## #????# #?????????????????????????????? | | #??????# ##???# #?????????????????????????????? | | ######## ##### #?????????????????????????????? | | ## #?????????????????????????????? | | #?????????????????????????????? | | ########## #?????????????????????????????? | | ?????????## #?????????????????????????????? | | ??????????## ##?????????????????????????????? | | ???????????## #??????????????????????????????? | | ????????????# ##?????????????????????????????? | | ????????????## ##????#####???????????????????? | | ?????????????## ###### #???????????????????? | | ??????????????# =%%d #???????????????????? | | ??????????# ####@d #???????????????????? | | ??????# #?# #???????????????????? | | ?????# #?# #???????????????????? | | ?????# ?## #???????????????????? | | ?????## ## #?# #???????????????????? | | ??????## #### ##?# #???????????????????? | | ???????# ###???####??# a ???????????????????? | | ??????# #????????????# % #??????????????????? | | ?????? #?????????????# #??????????????????? | | ?????? #??????????????# a ##??????????????????? | | ??????? ???????????????# ???????????????????? | | ???????????????????????? a ???????????????????? | | ????????????????????????##a ??????????????????? | | ?????????????????????????? a ??????????????????? | | ?????????????????????????? a ??????????????????? | | ?????????????????????????? ??????????????????? | | ?????????????????????????? ????????????????????? | | ?????????????????????????????????????????????????? | | ?????????????????????????????????????????????????? | | ?????????????????????????????????????????????????? | | ?????????????????????????????????????????????????? | | ?????????????????????????????????????????????????? | | ?????????????????????????????????????????????????? | | ?????????????????????????????????????????????????? | | ?????????????????????????????????????????????????? | +----------------------------------------------------+ Best States ------------- Heat Dissipation 25 Coolant Potential 50 Energy Generation 10 Energy Capacity 250 Matter Stores 300 Matter Capacity 300 Sight Range 16 Terrain Scan Density 10 Armor Coverage 225 Evasion (%) 50 Recoil Reduction 2 Item Schematics ----------------- None Robot Schematics ------------------ None Fabricated ------------ Nothing Repaired ---------- Nothing Studied --------- None Alien Tech Used ----------------- None Achievements -------------- None Challenges ------------ None Game ------ Seed VampiricOmegaFist Manual? 0 Play Time 00:24:45 Cumulative 104.0 hours Start 2026.02.28 @ 21:23:20 End 2026.03.01 @ 16:48:38 Sessions 3 Manual Loads 0 Difficulty Rogue Special Mode None Game No. 45 Rogue 45 Adventurer 0 Explorer 0 Win Type - Total 2 Types 2/0/0/0/0/0/0/0/0/0 Lore% 56 Gallery% 49 Achievement% 45 Wizard Run 0 Options --------- Layout 1 ASCII 0 Keyboard 0 Movement Numpad Keybinds 0 Fullscreen 2 Font 24/Smallcaps Map View 50x35 Zoom Use 0% Tactical HUD 1 Map Filters NONE Filters NONE Steam 1 RUN: 21c2314d-fbad-4258-869c-278bbbad9545